fUSD/lending_fUSD_20260703
["ID","MTS","AMOUNT","RATE_DAILY","PERIOD"]
[426935458,1783027832000,-250.0,0.00016158,2]
[426935463,1783027832000,-445.45361941,0.00016729,2]
[426935465,1783027832000,-686.026034,0.00017388,2]
[426935464,1783027832000,-300.0,0.00017387,2]
[426935466,1783027832000,-923.34651484,0.00017388,2]
[426935452,1783027832000,-297.83377933,0.00015937,2]
[426935493,1783027832000,-154.84178657,0.00020956,2]
[426935495,1783027832000,-613.82331065,0.000213,2]
[426935500,1783027832000,-500.0,0.00022567,2]
[426935530,1783027832000,-500.0,0.00024095,2]
[426935536,1783027832000,-500.0,0.00024095,2]
[426935531,1783027832000,-500.0,0.00024095,2]
[426935535,1783027832000,-500.0,0.00024095,2]
[426935534,1783027832000,-500.0,0.00024095,2]
[426935532,1783027832000,-162.32479247,0.00024095,2]
[426935539,1783027832000,-500.0,0.00024095,2]
[426935538,1783027832000,-500.0,0.00024095,2]
[426935540,1783027832000,-379.42406223,0.00024095,2]
[426935542,1783027832000,-500.0,0.00024095,2]
[426935541,1783027832000,-500.0,0.00024095,2]
[426935543,1783027832000,-500.0,0.00024095,2]
[426935528,1783027832000,-500.0,0.00024095,2]
[426935546,1783027832000,-500.0,0.00024095,2]
[426935544,1783027832000,-500.0,0.00024095,2]
[426935548,1783027832000,-500.0,0.00024095,2]
[426935547,1783027832000,-500.0,0.00024095,2]
[426935549,1783027832000,-500.0,0.00024095,2]
[426935550,1783027832000,-500.0,0.00024095,2]
[426935553,1783027832000,-500.0,0.00024095,2]
[426935551,1783027832000,-500.0,0.00024095,2]
[426935498,1783027832000,-400.0,0.00022444,2]
[426935557,1783027832000,-500.0,0.00024095,2]
[426935555,1783027832000,-500.0,0.00024095,2]
[426935554,1783027832000,-500.0,0.00024095,2]
[426935556,1783027832000,-500.0,0.00024095,2]
[426935545,1783027832000,-500.0,0.00024095,2]
[426935529,1783027832000,-500.0,0.00024095,2]
[426935552,1783027832000,-500.0,0.00024095,2]
[426935533,1783027832000,-500.0,0.00024095,2]
[426935527,1783027832000,-500.0,0.00024095,2]
[426935501,1783027832000,-563.31246554,0.00022723,2]
[426935503,1783027832000,-1411.51,0.00022952,2]
[426935512,1783027832000,-836.38742294,0.00023362,2]
[426935507,1783027832000,-150.0,0.00023278,120]
[426935508,1783027832000,-566.36,0.00023278,2]
[426935509,1783027832000,-150.0,0.00023295,2]
[426935502,1783027832000,-4436.68753446,0.00022723,2]
[426935504,1783027832000,-150.0,0.00023014,2]
[426935505,1783027832000,-188.58,0.00023122,2]
[426935511,1783027832000,-3654.55971236,0.00023362,2]
[426935510,1783027832000,-1488.07507784,0.00023352,2]
[426935514,1783027832000,-297.83377931,0.000236,2]
[426935506,1783027832000,-150.0,0.00023278,2]
[426935513,1783027832000,-13221.2228647,0.00023362,2]
[426935525,1783027832000,-500.0,0.00024095,2]
[426935526,1783027832000,-500.0,0.00024095,2]
[426935517,1783027832000,-40703.6096,0.00023996,120]
[426935515,1783027832000,-188.58,0.000237,2]
[426935520,1783027832000,-157.0,0.00024,2]
[426935521,1783027832000,-244.0,0.00024,2]
[426935516,1783027832000,-1852.42,0.0002387,2]
[426935524,1783027832000,-500.0,0.00024095,2]
[426935522,1783027832000,-156.0,0.00024,2]
[426935523,1783027832000,-197.0,0.00024,2]
[426935537,1783027832000,-500.0,0.00024095,2]
[426935518,1783027832000,-157.0,0.00024,2]
[426935519,1783027832000,-170.0,0.00024,2]
[426935584,1783027833000,-500.0,0.00024095,2]
[426935587,1783027833000,-142.98870938,0.00024095,2]
[426935586,1783027833000,-357.01129062,0.00024095,2]
[426935589,1783027833000,-500.0,0.00024095,2]
[426935604,1783027833000,-500.0,0.00024095,2]
[426935588,1783027833000,-500.0,0.00024095,2]
[426935593,1783027833000,-465.17264404,0.00024095,2]
[426935592,1783027833000,-500.0,0.00024095,2]
[426935594,1783027833000,-500.0,0.00024095,2]
[426935590,1783027833000,-500.0,0.00024095,2]
[426935602,1783027833000,-500.0,0.00024095,2]
[426935596,1783027833000,-500.0,0.00024095,2]
[426935598,1783027833000,-500.0,0.00024095,2]
[426935597,1783027833000,-500.0,0.00024095,2]
[426935600,1783027833000,-500.0,0.00024095,2]
[426935601,1783027833000,-500.0,0.00024095,2]
[426935599,1783027833000,-500.0,0.00024095,2]
[426935603,1783027833000,-500.0,0.00024095,2]
[426935607,1783027833000,-500.0,0.00024095,2]
[426935605,1783027833000,-500.0,0.00024095,2]
[426935585,1783027833000,-329.78159662,0.00024095,2]
[426935595,1783027833000,-500.0,0.00024095,2]
[426935583,1783027833000,-500.0,0.00024095,2]
[426935569,1783027833000,-500.0,0.00024095,2]
[426935581,1783027833000,-500.0,0.00024095,2]
[426935558,1783027833000,-500.0,0.00024095,2]
[426935562,1783027833000,-500.0,0.00024095,2]
[426935559,1783027833000,-500.0,0.00024095,2]
[426935563,1783027833000,-500.0,0.00024095,2]
[426935566,1783027833000,-500.0,0.00024095,2]
[426935564,1783027833000,-500.0,0.00024095,2]
[426935561,1783027833000,-500.0,0.00024095,2]
[426935565,1783027833000,-500.0,0.00024095,2]
[426935567,1783027833000,-500.0,0.00024095,2]
[426935560,1783027833000,-500.0,0.00024095,2]
[426935582,1783027833000,-500.0,0.00024095,2]
[426935568,1783027833000,-300.0,0.00024095,2]
[426935572,1783027833000,-500.0,0.00024095,2]
[426935574,1783027833000,-500.0,0.00024095,2]
[426935573,1783027833000,-500.0,0.00024095,2]
[426935570,1783027833000,-500.0,0.00024095,2]
[426935575,1783027833000,-500.0,0.00024095,2]
[426935576,1783027833000,-500.0,0.00024095,2]
[426935577,1783027833000,-500.0,0.00024095,2]
[426935578,1783027833000,-500.0,0.00024095,2]
[426935579,1783027833000,-500.0,0.00024095,2]
[426935580,1783027833000,-500.0,0.00024095,2]
[426935571,1783027833000,-500.0,0.00024095,2]
[426935606,1783027833000,-500.0,0.00024095,2]
[426935591,1783027833000,-500.0,0.00024095,2]
[426935610,1783027833000,-500.0,0.00024095,2]
[426935633,1783027833000,-586.06699009,0.00024095,2]
[426935632,1783027833000,-586.06699009,0.00024095,2]
[426935640,1783027833000,-586.06699009,0.00024095,2]
[426935639,1783027833000,-586.06699009,0.00024095,2]
[426935643,1783027833000,-586.06699009,0.00024095,2]
[426935642,1783027833000,-586.06699009,0.00024095,2]
[426935641,1783027833000,-586.06699009,0.00024095,2]
[426935644,1783027833000,-586.06699009,0.00024095,2]
[426935645,1783027833000,-586.06699009,0.00024095,2]
[426935646,1783027833000,-494.55711875,0.00024095,2]
[426935634,1783027833000,-586.06699009,0.00024095,2]
[426935648,1783027833000,-586.06699009,0.00024095,2]
[426935647,1783027833000,-91.50987134,0.00024095,2]
[426935650,1783027833000,-586.06699009,0.00024095,2]
[426935655,1783027833000,-586.06699009,0.00024095,2]
[426935652,1783027833000,-586.06699009,0.00024095,2]
[426935651,1783027833000,-586.06699009,0.00024095,2]
[426935657,1783027833000,-111.02185139,0.00024095,2]
[426935654,1783027833000,-586.06699009,0.00024095,2]
[426935653,1783027833000,-586.06699009,0.00024095,2]
[426935658,1783027833000,-385.75689483,0.00024095,2]
[426935608,1783027833000,-516.25903986,0.00024095,2]
[426935649,1783027833000,-586.06699009,0.00024095,2]
[426935629,1783027833000,-586.06699009,0.00024095,2]
[426935656,1783027833000,-475.0451387,0.00024095,2]
[426935635,1783027833000,-586.06699009,0.00024095,2]
[426935636,1783027833000,-586.06699009,0.00024095,2]
[426935611,1783027833000,-500.0,0.00024095,2]
[426935609,1783027833000,-500.0,0.00024095,2]
[426935613,1783027833000,-500.0,0.00024095,2]
[426935625,1783027833000,-586.06699009,0.00024095,2]
[426935614,1783027833000,-500.0,0.00024095,2]
[426935619,1783027833000,-350.0,0.00024095,2]
[426935622,1783027833000,-586.06699009,0.00024095,2]
[426935616,1783027833000,-500.0,0.00024095,2]
[426935621,1783027833000,-586.06699009,0.00024095,2]
[426935623,1783027833000,-586.06699009,0.00024095,2]
[426935612,1783027833000,-500.0,0.00024095,2]
[426935615,1783027833000,-500.0,0.00024095,2]
[426935617,1783027833000,-500.0,0.00024095,2]
[426935628,1783027833000,-586.06699009,0.00024095,2]
[426935637,1783027833000,-586.06699009,0.00024095,2]
[426935630,1783027833000,-586.06699009,0.00024095,2]
[426935631,1783027833000,-586.06699009,0.00024095,2]
[426935626,1783027833000,-586.06699009,0.00024095,2]
[426935624,1783027833000,-586.06699009,0.00024095,2]
[426935620,1783027833000,-586.06699009,0.00024095,2]
[426935618,1783027833000,-500.0,0.00024095,2]
[426935627,1783027833000,-586.06699009,0.00024095,2]
[426935638,1783027833000,-586.06699009,0.00024095,2]
[426935683,1783027838000,-500.0,0.00024095,2]
[426935687,1783027838000,-2980.12,0.00024174,2]
[426935704,1783027838000,-655.66932249,0.00025313,2]
[426935692,1783027838000,-154.94615298,0.00024397,2]
[426935685,1783027838000,-503.0,0.00024096,9]
[426935689,1783027838000,-504.84,0.00024174,2]
[426935688,1783027838000,-158.41,0.00024174,2]
[426935690,1783027838000,-4181.59,0.00024174,2]
[426935691,1783027838000,-188.58,0.00024278,2]
[426935702,1783027838000,-197.0,0.00025,2]
[426935705,1783027838000,-150.0,0.00025373,2]
[426935701,1783027838000,-167.0,0.00025,2]
[426935703,1783027838000,-400.0,0.0002525,2]
[426935693,1783027838000,-1000.0,0.00024658,2]
[426935699,1783027838000,-157.0,0.00025,2]
[426935696,1783027838000,-203.78,0.00024658,2]
[426935682,1783027838000,-500.0,0.00024095,2]
[426935697,1783027838000,-188.58,0.00024856,2]
[426935694,1783027838000,-202.84,0.00024658,2]
[426935686,1783027838000,-150.0,0.00024164,2]
[426935669,1783027838000,-597.2788833,0.00024095,2]
[426935684,1783027838000,-54483.07,0.00024096,2]
[426935698,1783027838000,-157.0,0.00025,2]
[426935663,1783027838000,-586.06699009,0.00024095,2]
[426935662,1783027838000,-200.31009526,0.00024095,2]
[426935664,1783027838000,-586.06699009,0.00024095,2]
[426935665,1783027838000,-586.06699009,0.00024095,2]
[426935666,1783027838000,-586.06699009,0.00024095,2]
[426935667,1783027838000,-597.2788833,0.00024095,2]
[426935668,1783027838000,-597.2788833,0.00024095,2]
[426935670,1783027838000,-597.2788833,0.00024095,2]
[426935672,1783027838000,-597.2788833,0.00024095,2]
[426935671,1783027838000,-597.2788833,0.00024095,2]
[426935674,1783027838000,-597.2788833,0.00024095,2]
[426935673,1783027838000,-597.2788833,0.00024095,2]
[426935679,1783027838000,-597.2788833,0.00024095,2]
[426935678,1783027838000,-597.2788833,0.00024095,2]
[426935675,1783027838000,-597.2788833,0.00024095,2]
[426935677,1783027838000,-597.2788833,0.00024095,2]
[426935676,1783027838000,-597.2788833,0.00024095,2]
[426935680,1783027838000,-597.2788833,0.00024095,2]
[426935681,1783027838000,-500.0,0.00024095,2]
[426935700,1783027838000,-244.0,0.00025,2]
[426935695,1783027838000,-206.0,0.00024658,2]
[426935708,1783027838000,-150.0,0.00025675,7]
[426935728,1783027838000,-675.0,0.0002705,5]
[426935732,1783027838000,-1944.84407154,0.00027297,2]
[426935734,1783027838000,-151.0,0.00027368,5]
[426935735,1783027838000,-670.0,0.00027391,5]
[426935737,1783027838000,-500.0,0.00027396,2]
[426935736,1783027838000,-150.61304731,0.00027396,2]
[426935743,1783027838000,-419.44343071,0.00027396,2]
[426935742,1783027838000,-500.0,0.00027396,2]
[426935738,1783027838000,-360.97091077,0.00027396,2]
[426935729,1783027838000,-150.0,0.0002707,5]
[426935733,1783027838000,-151.0,0.00027338,5]
[426935739,1783027838000,-487.54379979,0.00027396,2]
[426935741,1783027838000,-500.0,0.00027396,2]
[426935746,1783027838000,-9999.99,0.00027397,2]
[426935745,1783027838000,-2567.03,0.00027397,10]
[426935747,1783027838000,-150.99,0.00027397,2]
[426935748,1783027838000,-9999.99,0.00027397,2]
[426935749,1783027838000,-9999.99,0.00027397,2]
[426935750,1783027838000,-14241.98,0.00027397,2]
[426935706,1783027838000,-188.58,0.00025434,2]
[426935744,1783027838000,-3080.43,0.00027397,10]
[426935726,1783027838000,-244.0,0.00027,2]
[426935740,1783027838000,-500.0,0.00027396,2]
[426935725,1783027838000,-157.0,0.00027,2]
[426935709,1783027838000,-157.0,0.00026,2]
[426935727,1783027838000,-197.0,0.00027,2]
[426935707,1783027838000,-1000.0,0.00025617,120]
[426935716,1783027838000,-500.0,0.00026589,2]
[426935715,1783027838000,-152.0,0.00026562,3]
[426935713,1783027838000,-150.0,0.00026029,5]
[426935710,1783027838000,-244.0,0.00026,2]
[426935712,1783027838000,-200.0,0.00026013,2]
[426935714,1783027838000,-566.36,0.00026188,120]
[426935711,1783027838000,-197.0,0.00026,2]
[426935718,1783027838000,-1732.56,0.00026591,2]
[426935730,1783027838000,-172.07,0.00027218,2]
[426935720,1783027838000,-681.0,0.00026606,5]
[426935721,1783027838000,-150.0,0.00026641,2]
[426935731,1783027838000,-216.87214687,0.00027295,2]
[426935719,1783027838000,-3305.83,0.00026591,2]
[426935722,1783027838000,-682.0,0.00026691,5]
[426935724,1783027838000,-670.0,0.000269,5]
[426935717,1783027838000,-352.71,0.00026591,2]
[426935723,1783027838000,-673.0,0.0002679,5]
[426935791,1783027839000,-197.66,0.00028009,30]
[426935788,1783027839000,-157.0,0.00028,2]
[426935790,1783027839000,-197.0,0.00028,2]
[426935793,1783027839000,-191.27,0.00028101,30]
[426935785,1783027839000,-617.11399872,0.00027803,2]
[426935795,1783027839000,-181.0,0.00028371,5]
[426935786,1783027839000,-156.18,0.00027932,30]
[426935781,1783027839000,-255.96131269,0.00027598,2]
[426935780,1783027839000,-159.96169273,0.00027598,2]
[426935789,1783027839000,-244.0,0.00028,2]
[426935776,1783027839000,-175.30069209,0.00027598,2]
[426935794,1783027839000,-500.0,0.00028329,2]
[426935792,1783027839000,-400.0,0.00028056,120]
[426935801,1783027839000,-4754.2795,0.00029,2]
[426935807,1783027839000,-226.0,0.00029673,10]
[426935798,1783027839000,-669.0,0.00028986,5]
[426935796,1783027839000,-1944.84407149,0.00028669,2]
[426935799,1783027839000,-673.0,0.00028986,5]
[426935800,1783027839000,-163.0,0.00029,2]
[426935802,1783027839000,-253.0,0.00029,2]
[426935803,1783027839000,-209.0,0.00029,2]
[426935804,1783027839000,-1067.58406073,0.00029023,5]
[426935806,1783027839000,-152.0,0.00029432,4]
[426935805,1783027839000,-566.36,0.00029098,120]
[426935808,1783027839000,-800.0,0.0003,2]
[426935810,1783027839000,-800.0,0.0003,2]
[426935775,1783027839000,-210.74107152,0.00027598,2]
[426935797,1783027839000,-676.0,0.00028986,5]
[426935779,1783027839000,-185.76393472,0.00027598,2]
[426935760,1783027839000,-669.0,0.0002743,5]
[426935778,1783027839000,-187.89241557,0.00027598,2]
[426935814,1783027839000,-786.01322394,0.00030313,30]
[426935753,1783027839000,-9999.99,0.00027397,2]
[426935756,1783027839000,-188.97,0.000274,2]
[426935757,1783027839000,-188.97,0.00027412,2]
[426935755,1783027839000,-2745.52,0.00027397,10]
[426935751,1783027839000,-8026.86,0.00027397,2]
[426935752,1783027839000,-5813.91,0.00027397,2]
[426935754,1783027839000,-499.99,0.00027397,2]
[426935758,1783027839000,-673.0,0.00027414,5]
[426935767,1783027839000,-265.56293765,0.00027595,2]
[426935761,1783027839000,-685.0,0.00027449,5]
[426935766,1783027839000,-152.54040332,0.00027595,2]
[426935763,1783027839000,-673.0,0.00027497,5]
[426935764,1783027839000,-668.0,0.00027533,5]
[426935769,1783027839000,-174.79364334,0.00027598,2]
[426935762,1783027839000,-676.0,0.00027471,5]
[426935759,1783027839000,-21773.65,0.00027422,7]
[426935765,1783027839000,-236.71764492,0.00027595,2]
[426935770,1783027839000,-192.16377776,0.00027598,2]
[426935768,1783027839000,-243.40959163,0.00027595,2]
[426935772,1783027839000,-238.57974373,0.00027598,2]
[426935784,1783027839000,-246.26626819,0.00027598,2]
[426935771,1783027839000,-268.66402936,0.00027598,2]
[426935783,1783027839000,-253.10590397,0.00027598,2]
[426935782,1783027839000,-169.90572292,0.00027598,2]
[426935773,1783027839000,-201.25104411,0.00027598,2]
[426935774,1783027839000,-239.54802538,0.00027598,2]
[426935777,1783027839000,-276.78469097,0.00027598,2]
[426935812,1783027839000,-1944.84407149,0.00030041,2]
[426935787,1783027839000,-150.0,0.00027973,2]
[426935809,1783027839000,-800.0,0.0003,2]
[426935854,1783027839000,-223.79,0.00031606,3]
[426935851,1783027839000,-500.0,0.00031399,120]
[426935845,1783027839000,-600.0,0.00031299,2]
[426935846,1783027839000,-177.61230857,0.00031299,3]
[426935850,1783027839000,-397.29,0.00031359,2]
[426935853,1783027839000,-800.0,0.000315,2]
[426935847,1783027839000,-500.0,0.00031299,7]
[426935849,1783027839000,-468758.7159,0.000313,120]
[426935852,1783027839000,-1944.84407149,0.00031413,2]
[426935848,1783027839000,-500.0,0.00031299,7]
[426935856,1783027839000,-797.63074833,0.00031816,2]
[426935858,1783027839000,-566.36,0.00032008,120]
[426935859,1783027839000,-157.073915,0.00032054,2]
[426935867,1783027839000,-5368.46,0.00032232,2]
[426935857,1783027839000,-229.4506,0.00032,2]
[426935862,1783027839000,-2013.0,0.000322,2]
[426935860,1783027839000,-503.0,0.00032083,16]
[426935861,1783027839000,-157.073915,0.0003217,2]
[426935866,1783027839000,-4181.59,0.00032232,7]
[426935868,1783027839000,-161.0,0.0003224,11]
[426935869,1783027839000,-157.073916,0.00032285,2]
[426935863,1783027839000,-2980.12,0.00032232,7]
[426935865,1783027839000,-561.29,0.00032232,7]
[426935864,1783027839000,-275.04,0.00032232,7]
[426935871,1783027839000,-157.073916,0.000324,2]
[426935870,1783027839000,-152.0,0.00032302,5]
[426935811,1783027839000,-500.0,0.00030027,2]
[426935843,1783027839000,-1000.0,0.00031299,2]
[426935844,1783027839000,-1000.0,0.00031299,2]
[426935873,1783027839000,-152.0,0.00032472,7]
[426935842,1783027839000,-500.0,0.00031299,120]
[426935838,1783027839000,-500.0,0.00031299,120]
[426935818,1783027839000,-500.0,0.00030521,2]
[426935817,1783027839000,-800.0,0.000305,2]
[426935815,1783027839000,-163.507,0.00030491,26]
[426935816,1783027839000,-2217.485,0.00030491,26]
[426935820,1783027839000,-400.0,0.00030861,120]
[426935819,1783027839000,-209.04,0.0003067,2]
[426935826,1783027839000,-188.97,0.0003129,2]
[426935823,1783027839000,-3911.6035,0.00031199,2]
[426935824,1783027839000,-7297.1895,0.00031199,2]
[426935822,1783027839000,-800.0,0.00031,2]
[426935829,1783027839000,-500.0,0.00031299,120]
[426935828,1783027839000,-188.97,0.0003129,2]
[426935825,1783027839000,-797.6307484,0.00031199,2]
[426935813,1783027839000,-240.708101,0.00030137,30]
[426935827,1783027839000,-188.97,0.0003129,2]
[426935839,1783027839000,-500.0,0.00031299,120]
[426935837,1783027839000,-500.0,0.00031299,120]
[426935840,1783027839000,-500.0,0.00031299,120]
[426935831,1783027839000,-500.0,0.00031299,120]
[426935821,1783027839000,-226.0,0.00030974,10]
[426935834,1783027839000,-633.68130695,0.00031299,120]
[426935833,1783027839000,-500.0,0.00031299,120]
[426935872,1783027839000,-797.63074833,0.00032433,2]
[426935836,1783027839000,-500.0,0.00031299,120]
[426935841,1783027839000,-500.0,0.00031299,120]
[426935835,1783027839000,-500.0,0.00031299,120]
[426935830,1783027839000,-500.0,0.00031299,120]
[426935832,1783027839000,-500.0,0.00031299,120]
[426935918,1783027840000,-300.0,0.00033461,2]
[426935915,1783027840000,-300.0,0.00033461,2]
[426935914,1783027840000,-300.0,0.00033461,2]
[426935919,1783027840000,-300.0,0.00033461,2]
[426935905,1783027840000,-300.0,0.00033461,2]
[426935912,1783027840000,-495.35167751,0.00033461,2]
[426935922,1783027840000,-536.83065571,0.00033461,2]
[426935910,1783027840000,-300.0,0.00033461,2]
[426935907,1783027840000,-300.0,0.00033461,2]
[426935906,1783027840000,-300.0,0.00033461,2]
[426935913,1783027840000,-300.0,0.00033461,2]
[426935911,1783027840000,-300.0,0.00033461,2]
[426935934,1783027840000,-300.0,0.00033461,2]
[426935921,1783027840000,-300.0,0.00033461,2]
[426935917,1783027840000,-607.91868214,0.00033461,2]
[426935920,1783027840000,-300.0,0.00033461,2]
[426935924,1783027840000,-300.0,0.00033461,2]
[426935923,1783027840000,-730.2023839,0.00033461,2]
[426935926,1783027840000,-300.0,0.00033461,2]
[426935927,1783027840000,-300.0,0.00033461,2]
[426935925,1783027840000,-303.40388377,0.00033461,2]
[426935928,1783027840000,-302.19910179,0.00033461,2]
[426935932,1783027840000,-300.0,0.00033461,2]
[426935931,1783027840000,-300.0,0.00033461,2]
[426935933,1783027840000,-300.0,0.00033461,2]
[426935904,1783027840000,-300.0,0.00033461,2]
[426935916,1783027840000,-300.0,0.00033461,2]
[426935903,1783027840000,-300.0,0.00033461,2]
[426935885,1783027840000,-150.0,0.00033164,30]
[426935901,1783027840000,-300.0,0.00033461,2]
[426935881,1783027840000,-150.0,0.00033164,30]
[426935882,1783027840000,-162.52780859,0.00033164,30]
[426935874,1783027840000,-181.0,0.00032536,10]
[426935878,1783027840000,-216.69616408,0.00033,7]
[426935876,1783027840000,-661.42,0.00032824,2]
[426935879,1783027840000,-797.63074833,0.00033049,2]
[426935875,1783027840000,-1944.84407149,0.00032784,2]
[426935880,1783027840000,-150.0,0.00033164,30]
[426935877,1783027840000,-2779.56305547,0.000329,2]
[426935887,1783027840000,-150.0,0.00033164,30]
[426935883,1783027840000,-150.0,0.00033164,30]
[426935889,1783027840000,-1362.0,0.00033304,2]
[426935888,1783027840000,-1278.0,0.00033304,2]
[426935892,1783027840000,-3652.0,0.00033304,2]
[426935891,1783027840000,-1231.0,0.00033304,2]
[426935884,1783027840000,-150.0,0.00033164,30]
[426935895,1783027840000,-500.0,0.0003336,90]
[426935896,1783027840000,-500.0,0.0003336,90]
[426935890,1783027840000,-223.0,0.00033304,2]
[426935894,1783027840000,-500.0,0.0003336,90]
[426935893,1783027840000,-2337.0,0.00033344,11]
[426935909,1783027840000,-300.0,0.00033461,2]
[426935908,1783027840000,-300.0,0.00033461,2]
[426935898,1783027840000,-366.58054037,0.00033397,28]
[426935897,1783027840000,-879.431,0.0003336,90]
[426935900,1783027840000,-209.04,0.0003342,2]
[426935899,1783027840000,-9000.0,0.00033404,5]
[426935902,1783027840000,-300.0,0.00033461,2]
[426935929,1783027840000,-300.0,0.00033461,2]
[426935930,1783027840000,-300.0,0.00033461,2]
[426935936,1783027840000,-345.80256672,0.00033461,2]
[426935969,1783027840000,-300.0,0.00033461,2]
[426935968,1783027840000,-300.0,0.00033461,2]
[426935967,1783027840000,-300.0,0.00033461,2]
[426935970,1783027840000,-446.20103305,0.00033461,2]
[426935973,1783027840000,-327.6850521,0.00033461,2]
[426935983,1783027840000,-300.0,0.00033461,2]
[426935985,1783027840000,-300.0,0.00033461,2]
[426935984,1783027840000,-300.0,0.00033461,2]
[426935974,1783027840000,-300.0,0.00033461,2]
[426935981,1783027840000,-300.0,0.00033461,2]
[426935976,1783027840000,-1101.26754386,0.00033461,2]
[426935972,1783027840000,-300.0,0.00033461,2]
[426935977,1783027840000,-300.0,0.00033461,2]
[426935978,1783027840000,-300.0,0.00033461,2]
[426935982,1783027840000,-300.0,0.00033461,2]
[426935979,1783027840000,-300.0,0.00033461,2]
[426935980,1783027840000,-300.0,0.00033461,2]
[426935986,1783027840000,-300.0,0.00033461,2]
[426935988,1783027840000,-300.0,0.00033461,2]
[426935987,1783027840000,-300.0,0.00033461,2]
[426935989,1783027840000,-495.35167751,0.00033461,2]
[426935990,1783027840000,-300.0,0.00033461,2]
[426935991,1783027840000,-300.0,0.00033461,2]
[426935992,1783027840000,-300.0,0.00033461,2]
[426935993,1783027840000,-300.0,0.00033461,2]
[426935994,1783027840000,-607.91868214,0.00033461,2]
[426935935,1783027840000,-400.74905313,0.00033461,2]
[426935966,1783027840000,-300.0,0.00033461,2]
[426935965,1783027840000,-300.0,0.00033461,2]
[426935975,1783027840000,-387.92310194,0.00033461,2]
[426935963,1783027840000,-454.31833835,0.00033461,2]
[426935937,1783027840000,-529.6723478,0.00033461,2]
[426935964,1783027840000,-300.0,0.00033461,2]
[426935939,1783027840000,-300.0,0.00033461,2]
[426935938,1783027840000,-300.0,0.00033461,2]
[426935941,1783027840000,-300.0,0.00033461,2]
[426935944,1783027840000,-300.0,0.00033461,2]
[426935940,1783027840000,-300.0,0.00033461,2]
[426935942,1783027840000,-954.40977015,0.00033461,2]
[426935945,1783027840000,-300.0,0.00033461,2]
[426935943,1783027840000,-1807.51296116,0.00033461,2]
[426935947,1783027840000,-300.0,0.00033461,2]
[426935959,1783027840000,-514.02377053,0.00033461,2]
[426935957,1783027840000,-300.0,0.00033461,2]
[426935956,1783027840000,-300.0,0.00033461,2]
[426935946,1783027840000,-564.57560998,0.00033461,2]
[426935971,1783027840000,-300.0,0.00033461,2]
[426935962,1783027840000,-300.0,0.00033461,2]
[426935958,1783027840000,-300.0,0.00033461,2]
[426935961,1783027840000,-584.85636615,0.00033461,2]
[426935960,1783027840000,-300.0,0.00033461,2]
[426935954,1783027840000,-361.62048912,0.00033461,2]
[426935952,1783027840000,-569.07827579,0.00033461,2]
[426935953,1783027840000,-300.0,0.00033461,2]
[426935950,1783027840000,-311.25771399,0.00033461,2]
[426935949,1783027840000,-300.0,0.00033461,2]
[426935948,1783027840000,-597.3150425,0.00033461,2]
[426935955,1783027840000,-300.0,0.00033461,2]
[426935951,1783027840000,-300.0,0.00033461,2]
[426936065,1783027841000,-300.0,0.00033461,2]